fUST/lending_fUST_20250129
["ID","MTS","AMOUNT","RATE_DAILY","PERIOD"]
[350798656,1738135845346,-512.95,0.00016986,2]
[350798657,1738135845355,-512.22909058,0.00016986,2]
[350798658,1738135845365,-375.49410856,0.00016986,2]
[350798659,1738135845378,-124.50589144,0.00016986,2]
[350798660,1738135845387,-500.0,0.00016986,2]
[350798661,1738135845397,-500.0,0.00016986,2]
[350798662,1738135845406,-500.0,0.00016986,2]
[350798663,1738135845416,-500.0,0.00016986,2]
[350798664,1738135845425,-805.85,0.00016986,2]
[350798665,1738135845435,-1284.94,0.00016986,2]
[350798666,1738135845445,-176.45593646,0.00016986,2]
[350798667,1738135845455,-500.0,0.00016986,2]
[350798668,1738135845465,-421.32,0.00016986,2]
[350798669,1738135845475,-500.0,0.00016986,2]
[350798670,1738135845485,-302.37466675,0.00016986,2]
[350798671,1738135845494,-500.0,0.00016986,2]
[350798672,1738135845503,-500.0,0.00016986,2]
[350798673,1738135845512,-500.0,0.00016986,2]
[350798674,1738135845522,-787.83,0.00016986,2]
[350798675,1738135845532,-500.0,0.00016986,2]
[350798676,1738135845541,-500.0,0.00016986,2]
[350798677,1738135845550,-500.0,0.00016986,2]
[350798678,1738135845559,-46.54470927,0.00016986,2]
[350798679,1738135845670,-427.50203581,0.00016986,2]
[350798680,1738135845681,-25.95325492,0.00016986,2]
[350798681,1738135845691,-675.26,0.00016986,2]
[350798682,1738135845700,-500.0,0.00016986,2]
[350798683,1738135845709,-500.0,0.00016986,2]
[350798684,1738135845719,-500.0,0.00016986,2]
[350798685,1738135845728,-151.0,0.00016986,2]
[350798686,1738135845737,-500.0,0.00016986,2]
[350798687,1738135845747,-500.0,0.00016986,2]
[350798688,1738135845756,-151.0,0.00016986,2]
[350798689,1738135845766,-500.0,0.00016986,2]
[350798690,1738135845776,-500.0,0.00016986,2]
[350798691,1738135845785,-500.0,0.00016986,2]
[350798692,1738135845795,-500.0,0.00016986,2]
[350798693,1738135845804,-500.0,0.00016986,2]
[350798694,1738135845814,-500.0,0.00016986,2]
[350798695,1738135845823,-3697.8,0.00016986,2]
[350798696,1738135845833,-500.0,0.00016986,2]
[350798697,1738135845842,-500.0,0.00016986,2]
[350798698,1738135845852,-401.65,0.00016986,2]
[350798699,1738135845862,-500.0,0.00016986,2]
[350798700,1738135845871,-500.0,0.00016986,2]
[350798701,1738135845880,-500.0,0.00016986,2]
[350798702,1738135845890,-500.0,0.00016986,2]
[350798703,1738135845899,-500.0,0.00016986,2]
[350798704,1738135845908,-1074.26,0.00016986,2]
[350798705,1738135845918,-500.0,0.00016986,2]
[350798706,1738135845927,-500.0,0.00016986,2]
[350798707,1738135845936,-723.78,0.00016986,2]
[350798708,1738135845945,-678.75,0.00016986,2]
[350798709,1738135845954,-500.0,0.00016986,2]
[350798710,1738135845963,-500.0,0.00016986,2]
[350798711,1738135845973,-500.0,0.00016986,2]
[350798712,1738135845984,-554.29949785,0.00017032,2]
[350798713,1738135845994,-502.92954268,0.0001704,2]
[350798714,1738135846003,-500.0,0.00017123,2]
[350798715,1738135846012,-500.0,0.00017123,2]
[350798716,1738135846022,-500.0,0.00017123,2]
[350798717,1738135846031,-500.0,0.00017123,2]
[350798718,1738135846040,-629.49144676,0.00017123,2]
[350798719,1738135846049,-500.0,0.00017123,2]
[350798720,1738135846061,-500.0,0.00017123,2]
[350798721,1738135846070,-500.0,0.00017123,2]
[350798722,1738135846079,-500.0,0.00017123,2]
[350798723,1738135846088,-500.0,0.00017123,2]
[350798724,1738135846097,-500.0,0.00017123,2]
[350798725,1738135846107,-500.0,0.00017123,2]
[350798727,1738135846116,-654.86,0.00017123,2]
[350798728,1738135846126,-500.0,0.00017123,2]
[350798730,1738135846135,-500.0,0.00017123,2]
[350798732,1738135846145,-500.0,0.00017123,2]
[350798733,1738135846154,-500.0,0.00017123,2]
[350798734,1738135846163,-500.0,0.00017123,2]
[350798735,1738135846172,-500.0,0.00017123,2]
[350798736,1738135846182,-500.0,0.00017123,2]
[350798737,1738135846191,-500.0,0.00017123,2]
[350798738,1738135846200,-500.0,0.00017123,2]
[350798739,1738135846209,-500.0,0.00017123,2]
[350798740,1738135846219,-500.0,0.00017123,2]
[350798741,1738135846228,-500.0,0.00017123,2]
[350798742,1738135846237,-500.0,0.00017123,2]
[350798744,1738135846247,-500.0,0.00017123,2]
[350798746,1738135846256,-500.0,0.00017123,2]
[350798748,1738135846265,-545.77269703,0.00017123,2]
[350798750,1738135846274,-500.0,0.00017123,2]
[350798752,1738135846284,-500.0,0.00017123,2]
[350798754,1738135846293,-500.0,0.00017123,2]
[350798755,1738135846303,-500.0,0.00017123,2]
[350798756,1738135846312,-500.0,0.00017123,2]
[350798757,1738135846321,-500.0,0.00017123,2]
[350798758,1738135846330,-500.0,0.00017123,2]
[350798760,1738135846340,-500.0,0.00017123,2]
[350798762,1738135846349,-500.0,0.00017123,2]
[350798763,1738135846358,-500.0,0.00017123,2]
[350798766,1738135846368,-500.0,0.00017123,2]
[350798767,1738135846377,-500.0,0.00017123,2]
[350798769,1738135846387,-500.0,0.00017123,2]
[350798771,1738135846396,-500.0,0.00017123,2]
[350798772,1738135846405,-500.0,0.00017123,2]
[350798773,1738135846414,-510.16,0.00017123,2]
[350798774,1738135846424,-500.0,0.00017123,2]
[350798775,1738135846434,-3908.02,0.00017123,2]
[350798776,1738135846443,-1070.39,0.00017123,2]
[350798778,1738135846452,-500.0,0.00017123,2]
[350798779,1738135846461,-800.9,0.00017123,2]
[350798780,1738135846470,-500.0,0.00017123,2]
[350798781,1738135846480,-500.0,0.00017123,2]
[350798782,1738135846489,-500.0,0.00017123,2]
[350798783,1738135846498,-12653.06,0.00017123,2]
[350798784,1738135846508,-500.0,0.00017123,2]
[350798785,1738135846517,-500.0,0.00017123,2]
[350798786,1738135846526,-500.0,0.00017123,2]
[350798787,1738135846536,-512.95,0.00017123,2]
[350798788,1738135846545,-500.0,0.00017123,2]
[350798789,1738135846554,-500.0,0.00017123,2]
[350798790,1738135846563,-500.0,0.00017123,2]
[350798791,1738135846573,-500.0,0.00017123,2]
[350798792,1738135846582,-500.0,0.00017123,2]
[350798793,1738135846592,-805.85,0.00017123,2]
[350798794,1738135846602,-1284.94,0.00017123,2]
[350798795,1738135846613,-500.0,0.00017123,2]
[350798796,1738135846622,-500.0,0.00017123,2]
[350798797,1738135846632,-500.0,0.00017123,2]
[350798798,1738135846641,-500.0,0.00017123,2]
[350798799,1738135846651,-500.0,0.00017123,2]
[350798800,1738135846660,-787.83,0.00017123,2]
[350798801,1738135846670,-500.0,0.00017123,2]
[350798802,1738135846680,-500.0,0.00017123,2]
[350798803,1738135846690,-500.0,0.00017123,2]
[350798804,1738135846699,-500.0,0.00017123,2]
[350798805,1738135846708,-675.26,0.00017123,2]
[350798806,1738135846718,-500.0,0.00017123,2]
[350798807,1738135846728,-500.0,0.00017123,2]
[350798808,1738135846737,-500.0,0.00017123,2]
[350798809,1738135846747,-500.0,0.00017123,2]
[350798810,1738135846757,-500.0,0.00017123,2]
[350798811,1738135846767,-500.0,0.00017123,2]
[350798812,1738135846777,-500.0,0.00017123,2]
[350798813,1738135846787,-500.0,0.00017123,2]
[350798814,1738135846797,-500.0,0.00017123,2]
[350798815,1738135846807,-500.0,0.00017123,2]
[350798816,1738135846816,-500.0,0.00017123,2]
[350798817,1738135846829,-3697.8,0.00017123,2]
[350798818,1738135846838,-500.0,0.00017123,2]
[350798819,1738135846847,-500.0,0.00017123,2]
[350798820,1738135846857,-500.0,0.00017123,2]
[350798821,1738135846866,-474.03105803,0.00017123,2]
[350798822,1738135846880,-25.96894197,0.00017123,2]
[350798823,1738135846889,-500.0,0.00017123,2]
[350798824,1738135846899,-500.0,0.00017123,2]
[350798825,1738135846909,-1074.26,0.00017123,2]
[350798826,1738135846918,-281.50991394,0.00017123,2]
[350798827,1738135846927,-500.0,0.00017123,2]
[350798828,1738135846937,-723.78,0.00017123,2]
[350798829,1738135846946,-678.75,0.00017123,2]
[350798830,1738135846955,-500.0,0.00017123,2]
[350798831,1738135846966,-500.0,0.00017123,2]
[350798832,1738135846978,-500.0,0.00017123,2]
[350798833,1738135846987,-4695.33,0.000172,2]
[350798834,1738135846996,-500.0,0.0001726,2]
[350798835,1738135847005,-342.48,0.0001726,2]
[350798836,1738135847015,-500.0,0.0001726,2]
[350798837,1738135847025,-212.26,0.0001726,2]
[350798838,1738135847034,-500.0,0.0001726,2]
[350798839,1738135847043,-500.0,0.0001726,2]
[350798840,1738135847052,-500.0,0.0001726,2]
[350798841,1738135847063,-500.0,0.0001726,2]
[350798842,1738135847072,-500.0,0.0001726,2]
[350798843,1738135847082,-654.86,0.0001726,2]
[350798844,1738135847091,-500.0,0.0001726,2]
[350798845,1738135847100,-500.0,0.0001726,2]
[350798846,1738135847110,-500.0,0.0001726,2]
[350798847,1738135847119,-421.82548916,0.0001726,2]
[350798848,1738135847128,-500.0,0.0001726,2]
[350798849,1738135847137,-500.0,0.0001726,2]
[350798850,1738135847146,-500.0,0.0001726,2]
[350798851,1738135847155,-500.0,0.0001726,2]
[350798852,1738135847164,-500.0,0.0001726,2]
[350798853,1738135847173,-500.0,0.0001726,2]
[350798854,1738135847182,-500.0,0.0001726,2]
[350798855,1738135847191,-500.0,0.0001726,2]
[350798856,1738135847201,-500.0,0.0001726,2]
[350798857,1738135847212,-500.0,0.0001726,2]
[350798858,1738135847223,-500.0,0.0001726,2]
[350798859,1738135847233,-500.0,0.0001726,2]
[350798860,1738135847243,-151.878997,0.0001726,2]
[350798861,1738135847252,-500.0,0.0001726,2]
[350798862,1738135847262,-638.48,0.0001726,2]
[350798863,1738135847273,-500.0,0.0001726,2]
[350798864,1738135847282,-500.0,0.0001726,2]
[350798865,1738135847291,-500.0,0.0001726,2]
[350798866,1738135847389,-500.0,0.0001726,2]
[350798867,1738135847398,-500.0,0.0001726,2]
[350798868,1738135847408,-500.0,0.0001726,2]
[350798869,1738135847418,-151.0,0.0001726,2]
[350798870,1738135847427,-153.994862,0.0001726,2]
[350798871,1738135847435,-152.100726,0.0001726,2]
[350798872,1738135847444,-500.0,0.0001726,2]
[350798873,1738135847454,-500.0,0.0001726,2]
[350798874,1738135847463,-500.0,0.0001726,2]
[350798875,1738135847472,-500.0,0.0001726,2]
[350798876,1738135847482,-500.0,0.0001726,2]
[350798877,1738135847492,-3908.02,0.0001726,2]
[350798878,1738135847501,-1070.39,0.0001726,2]
[350798879,1738135847511,-500.0,0.0001726,2]
[350798880,1738135847520,-800.9,0.0001726,2]
[350798881,1738135847530,-500.0,0.0001726,2]
[350798882,1738135847539,-500.0,0.0001726,2]
[350798883,1738135847548,-500.0,0.0001726,2]
[350798884,1738135847558,-12653.06,0.0001726,2]
[350798885,1738135847567,-500.0,0.0001726,2]
[350798886,1738135847576,-500.0,0.0001726,2]
[350798887,1738135847585,-512.95,0.0001726,2]
[350798888,1738135847594,-500.0,0.0001726,2]
[350798889,1738135847603,-500.0,0.0001726,2]
[350798890,1738135847614,-500.0,0.0001726,2]
[350798891,1738135847623,-500.0,0.0001726,2]
[350798892,1738135847633,-500.0,0.0001726,2]
[350798893,1738135847642,-805.85,0.0001726,2]
[350798894,1738135847652,-1284.94,0.0001726,2]
[350798895,1738135847661,-500.0,0.0001726,2]
[350798896,1738135847671,-582.72,0.0001726,2]
[350798897,1738135847680,-500.0,0.0001726,2]
[350798898,1738135847689,-492.60429228,0.0001726,2]
[350798899,1738135847698,-787.83,0.0001726,2]
[350798900,1738135847708,-500.0,0.0001726,2]
[350798901,1738135847718,-500.0,0.0001726,2]
[350798902,1738135847727,-500.0,0.0001726,2]
[350798903,1738135847737,-500.0,0.0001726,2]
[350798904,1738135847746,-675.26,0.0001726,2]
[350798905,1738135847756,-500.0,0.0001726,2]
[350798906,1738135847765,-500.0,0.0001726,2]
[350798907,1738135847774,-500.0,0.0001726,2]
[350798908,1738135847784,-500.0,0.0001726,2]
[350798909,1738135847793,-500.0,0.0001726,2]
[350798910,1738135847803,-151.0,0.0001726,2]
[350798911,1738135847812,-500.0,0.0001726,2]
[350798912,1738135847822,-500.0,0.0001726,2]
[350798913,1738135847831,-500.0,0.0001726,2]
[350798914,1738135847841,-500.0,0.0001726,2]
[350798915,1738135847851,-500.0,0.0001726,2]
[350798916,1738135847861,-500.0,0.0001726,2]
[350798917,1738135847870,-3697.8,0.0001726,2]
[350798918,1738135847879,-500.0,0.0001726,2]
[350798919,1738135847889,-500.0,0.0001726,2]
[350798920,1738135847897,-500.0,0.0001726,2]
[350798921,1738135847907,-500.0,0.0001726,2]
[350798922,1738135847917,-520.44,0.0001726,2]
[350798923,1738135847927,-500.0,0.0001726,2]
[350798924,1738135847936,-1074.26,0.0001726,2]
[350798925,1738135847945,-500.0,0.0001726,2]
[350798926,1738135847954,-723.78,0.0001726,2]
[350798927,1738135847963,-678.75,0.0001726,2]
[350798928,1738135847972,-500.0,0.0001726,2]
[350798929,1738135847984,-500.0,0.0001726,2]
[350798930,1738135847993,-500.0,0.00017397,2]
[350798931,1738135848002,-500.0,0.00017397,2]
[350798932,1738135848011,-355.52,0.00017397,2]
[350798933,1738135848020,-500.0,0.00017397,2]
[350798934,1738135848030,-500.0,0.00017397,2]
[350798935,1738135848039,-500.0,0.00017397,2]
[350798936,1738135848049,-500.0,0.00017397,2]
[350798937,1738135848058,-654.86,0.00017397,2]
[350798938,1738135848068,-500.0,0.00017397,2]
[350798939,1738135848077,-500.0,0.00017397,2]
[350798940,1738135848086,-500.0,0.00017397,2]
[350798941,1738135848096,-151.0,0.00017397,2]
[350798942,1738135848105,-500.0,0.00017397,2]
[350798943,1738135848116,-500.0,0.00017397,2]
[350798944,1738135848125,-500.0,0.00017397,2]
[350798945,1738135848134,-500.0,0.00017397,2]
[350798946,1738135848143,-545.08,0.00017397,2]
[350798947,1738135848152,-500.0,0.00017397,2]
[350798948,1738135848162,-500.0,0.00017397,2]
[350798949,1738135848172,-500.0,0.00017397,2]
[350798950,1738135848181,-318.72,0.00017397,2]
[350798951,1738135848191,-500.0,0.00017397,2]
[350798952,1738135848200,-500.0,0.00017397,2]
[350798953,1738135848210,-500.0,0.00017397,2]
[350798954,1738135848219,-500.0,0.00017397,2]
[350798955,1738135848228,-500.0,0.00017397,2]
[350798956,1738135848238,-500.0,0.00017397,2]
[350798957,1738135848247,-540.80631932,0.00017397,2]
[350798958,1738135848256,-500.0,0.00017397,2]
[350798959,1738135848265,-647.01,0.00017397,2]
[350798960,1738135848275,-312.0,0.00017397,2]
[350798961,1738135848284,-151.0,0.00017397,2]
[350798962,1738135848293,-500.0,0.00017397,2]
[350798963,1738135848302,-151.0,0.00017397,2]
[350798964,1738135848312,-3908.02,0.00017397,2]
[350798965,1738135848321,-1070.39,0.00017397,2]
[350798966,1738135848330,-500.0,0.00017397,2]
[350798967,1738135848340,-800.9,0.00017397,2]
[350798968,1738135848349,-151.0,0.00017397,2]
[350798969,1738135848359,-500.0,0.00017397,2]
[350798970,1738135848368,-500.0,0.00017397,2]
[350798971,1738135848377,-500.0,0.00017397,2]
[350798972,1738135848387,-12653.06,0.00017397,2]
[350798973,1738135848396,-500.0,0.00017397,2]
[350798974,1738135848405,-500.0,0.00017397,2]
[350798975,1738135848415,-512.95,0.00017397,2]
[350798976,1738135848424,-500.0,0.00017397,2]
[350798977,1738135848433,-500.0,0.00017397,2]
[350798978,1738135848443,-500.0,0.00017397,2]
[350798979,1738135848453,-500.0,0.00017397,2]
[350798980,1738135848462,-500.0,0.00017397,2]
[350798981,1738135848472,-805.85,0.00017397,2]
[350798982,1738135848482,-1284.94,0.00017397,2]
[350798983,1738135848492,-500.0,0.00017397,2]
[350798984,1738135848502,-500.0,0.00017397,2]
[350798985,1738135848512,-787.83,0.00017397,2]
[350798986,1738135848522,-500.0,0.00017397,2]
[350798987,1738135848532,-510.84,0.00017397,2]
[350798988,1738135848541,-500.0,0.00017397,2]
[350798989,1738135848551,-500.0,0.00017397,2]
[350798990,1738135848561,-675.26,0.00017397,2]
[350798991,1738135848570,-485.64,0.00017397,2]
[350798992,1738135848579,-500.0,0.00017397,2]
[350798993,1738135848589,-500.0,0.00017397,2]
[350798994,1738135848598,-500.0,0.00017397,2]
[350798995,1738135848609,-500.0,0.00017397,2]
[350798996,1738135848619,-498.30517076,0.00017397,2]
[350798997,1738135848628,-376.89,0.00017397,2]
[350798998,1738135848638,-500.0,0.00017397,2]
[350798999,1738135848647,-500.0,0.00017397,2]
[350799000,1738135848657,-519.09,0.00017397,2]
[350799001,1738135848667,-500.0,0.00017397,2]
[350799002,1738135848676,-3697.8,0.00017397,2]
[350799003,1738135848685,-500.0,0.00017397,2]
[350799004,1738135848696,-500.0,0.00017397,2]
[350799005,1738135848705,-500.0,0.00017397,2]
[350799006,1738135848714,-500.0,0.00017397,2]
[350799007,1738135848724,-287.67,0.00017397,2]
[350799008,1738135848733,-1074.26,0.00017397,2]
[350799009,1738135848742,-500.0,0.00017397,2]
[350799010,1738135848752,-723.78,0.00017397,2]
[350799011,1738135848761,-678.75,0.00017397,2]
[350799012,1738135848770,-500.0,0.00017397,2]
[350799013,1738135848779,-218.69947285,0.00017397,2]
[350799014,1738135848788,-12945.24961731,0.00017481,2]
[350799015,1738135848797,-500.0,0.00017534,2]
[350799016,1738135848806,-400.17,0.00017534,2]
[350799017,1738135848816,-500.0,0.00017534,2]
[350799018,1738135848825,-500.0,0.00017534,2]
[350799019,1738135848835,-151.0,0.00017534,2]
[350799020,1738135848844,-151.0,0.00017534,2]
[350799021,1738135848853,-500.0,0.00017534,2]
[350799022,1738135848863,-500.0,0.00017534,2]
[350799023,1738135848872,-654.86,0.00017534,2]
[350799024,1738135848881,-500.0,0.00017534,2]
[350799025,1738135848891,-500.0,0.00017534,2]
[350799026,1738135848900,-500.0,0.00017534,2]
[350799027,1738135848909,-500.0,0.00017534,2]
[350799028,1738135848918,-500.0,0.00017534,2]
[350799029,1738135848927,-500.0,0.00017534,2]
[350799030,1738135848937,-500.0,0.00017534,2]
[350799031,1738135848946,-353.52,0.00017534,2]
[350799032,1738135848955,-500.0,0.00017534,2]
[350799033,1738135848965,-500.0,0.00017534,2]
[350799034,1738135848976,-500.0,0.00017534,2]
[350799035,1738135848989,-459.68,0.00017534,2]
[350799036,1738135848998,-500.0,0.00017534,2]
[350799037,1738135849008,-621.84,0.00017534,2]
[350799038,1738135849018,-500.0,0.00017534,2]
[350799039,1738135849030,-151.0,0.00017534,2]
[350799040,1738135849039,-500.0,0.00017534,2]
[350799041,1738135849049,-3908.02,0.00017534,2]
[350799042,1738135849060,-1070.39,0.00017534,2]
[350799043,1738135849069,-500.0,0.00017534,2]
[350799044,1738135849078,-800.9,0.00017534,2]
[350799045,1738135849088,-500.0,0.00017534,2]
[350799046,1738135849097,-500.0,0.00017534,2]
[350799047,1738135849107,-500.0,0.00017534,2]
[350799048,1738135849117,-12653.06,0.00017534,2]
[350799049,1738135849127,-500.0,0.00017534,2]
[350799050,1738135849136,-500.0,0.00017534,2]
[350799051,1738135849145,-512.95,0.00017534,2]
[350799052,1738135849155,-500.0,0.00017534,2]
[350799053,1738135849165,-500.0,0.00017534,2]
[350799054,1738135849175,-500.0,0.00017534,2]
[350799055,1738135849185,-500.0,0.00017534,2]
[350799056,1738135849195,-500.0,0.00017534,2]
[350799057,1738135849205,-805.85,0.00017534,2]
[350799058,1738135849215,-1284.94,0.00017534,2]
[350799059,1738135849225,-500.0,0.00017534,2]
[350799060,1738135849234,-500.0,0.00017534,2]
[350799061,1738135849243,-787.83,0.00017534,2]
[350799062,1738135849253,-500.0,0.00017534,2]
[350799063,1738135849263,-500.0,0.00017534,2]
[350799064,1738135849272,-238.36,0.00017534,2]
[350799065,1738135849281,-675.26,0.00017534,2]
[350799066,1738135849290,-257.28,0.00017534,2]
[350799067,1738135849300,-500.0,0.00017534,2]
[350799068,1738135849313,-500.0,0.00017534,2]
[350799069,1738135849323,-500.0,0.00017534,2]
[350799070,1738135849333,-500.0,0.00017534,2]
[350799071,1738135849342,-395.30241624,0.00017534,2]
[350799072,1738135849351,-500.0,0.00017534,2]
[350799073,1738135849361,-3697.8,0.00017534,2]
[350799074,1738135849370,-500.0,0.00017534,2]
[350799075,1738135849379,-500.0,0.00017534,2]
[350799076,1738135849388,-500.0,0.00017534,2]
[350799077,1738135849397,-1074.26,0.00017534,2]
[350799078,1738135849407,-500.0,0.00017534,2]
[350799079,1738135849416,-723.78,0.00017534,2]
[350799080,1738135849425,-678.75,0.00017534,2]
[350799081,1738135849434,-500.0,0.00017534,2]
[350799082,1738135849443,-6925.01,0.000176,2]
[350799083,1738135849452,-500.0,0.00017671,2]
[350799084,1738135849462,-500.0,0.00017671,2]
[350799085,1738135849471,-500.0,0.00017671,2]
[350799086,1738135849480,-153.6,0.00017671,2]
[350799087,1738135849489,-484.15,0.00017671,2]
[350799088,1738135849499,-654.86,0.00017671,2]
[350799089,1738135849509,-409.86,0.00017671,2]
[350799090,1738135849606,-500.0,0.00017671,2]
[350799091,1738135849616,-356.08,0.00017671,2]
[350799092,1738135849626,-554.64,0.00017671,2]
[350799093,1738135849635,-152.44,0.00017671,2]
[350799094,1738135849644,-500.0,0.00017671,2]
[350799095,1738135849654,-500.0,0.00017671,2]
[350799096,1738135849664,-500.0,0.00017671,2]
[350799097,1738135849673,-500.0,0.00017671,2]
[350799098,1738135849682,-594.47698812,0.00017671,2]
[350799099,1738135849692,-551.84,0.00017671,2]
[350799100,1738135849702,-500.0,0.00017671,2]
[350799101,1738135849711,-167.76,0.00017671,2]
[350799102,1738135849721,-288.440635,0.00017671,2]
[350799103,1738135849730,-3908.02,0.00017671,2]
[350799104,1738135849740,-1070.39,0.00017671,2]
[350799105,1738135849750,-265.92,0.00017671,2]
[350799106,1738135849760,-800.9,0.00017671,2]
[350799107,1738135849769,-151.0,0.00017671,2]
[350799108,1738135849779,-500.0,0.00017671,2]
[350799109,1738135849788,-500.0,0.00017671,2]
[350799110,1738135849797,-500.0,0.00017671,2]
[350799111,1738135849807,-12653.06,0.00017671,2]
[350799112,1738135849817,-512.95,0.00017671,2]
[350799113,1738135849826,-500.0,0.00017671,2]
[350799114,1738135849836,-500.0,0.00017671,2]
[350799115,1738135849845,-500.0,0.00017671,2]
[350799116,1738135849855,-504.08,0.00017671,2]
[350799117,1738135849864,-500.0,0.00017671,2]
[350799118,1738135849873,-805.85,0.00017671,2]
[350799119,1738135849883,-872.10455624,0.00017671,2]
[350799120,1738135850023,-500.0,0.00016438,2]
[350799121,1738135850033,-87.96872001,0.00016575,2]
[350799122,1738135850045,-412.03127999,0.00016575,2]
[350799123,1738135850054,-553.84,0.00016712,2]
[350799124,1738135850066,-412.83544376,0.00017671,2]
[350799125,1738135850076,-500.0,0.00017671,2]
[350799126,1738135850085,-500.0,0.00017671,2]
[350799127,1738135850095,-787.83,0.00017671,2]
[350799128,1738135850104,-500.0,0.00017671,2]
[350799129,1738135850114,-500.0,0.00017671,2]
[350799130,1738135850123,-675.26,0.00017671,2]
[350799131,1738135850133,-500.0,0.00017671,2]
[350799132,1738135850142,-500.0,0.00017671,2]
[350799133,1738135850153,-500.0,0.00017671,2]
[350799134,1738135850162,-500.0,0.00017671,2]
[350799135,1738135850171,-500.0,0.00017671,2]
[350799136,1738135850181,-3697.8,0.00017671,2]
[350799137,1738135850191,-211.04,0.00017671,2]
[350799138,1738135850200,-500.0,0.00017671,2]
[350799139,1738135850209,-321.84,0.00017671,2]
[350799140,1738135850219,-683.00265329,0.00017671,2]
[350799141,1738135850231,-391.25734671,0.00017671,2]
[350799142,1738135850240,-500.0,0.00017671,2]
[350799143,1738135850250,-723.78,0.00017671,2]
[350799144,1738135850260,-678.75,0.00017671,2]
[350799145,1738135850269,-643.19,0.00017671,2]
[350799146,1738135850278,-500.0,0.00017808,2]
[350799147,1738135850287,-500.0,0.00017808,2]
[350799148,1738135850296,-500.0,0.00017808,2]
[350799149,1738135850306,-654.86,0.00017808,2]
[350799150,1738135850315,-500.0,0.00017808,2]
[350799151,1738135850325,-500.0,0.00017808,2]
[350799152,1738135850334,-500.0,0.00017808,2]
[350799153,1738135850344,-500.0,0.00017808,2]
[350799154,1738135850353,-500.0,0.00017808,2]
[350799155,1738135850362,-500.0,0.00017808,2]
[350799156,1738135850372,-3908.02,0.00017808,2]
[350799157,1738135850381,-1070.39,0.00017808,2]
[350799158,1738135850391,-800.9,0.00017808,2]
[350799159,1738135850400,-500.0,0.00017808,2]
[350799160,1738135850409,-500.0,0.00017808,2]
[350799161,1738135850418,-500.0,0.00017808,2]
[350799162,1738135850428,-9623.95234933,0.00017808,2]
[350799163,1738135850542,-171.26242089,0.00016474,2]
[350799164,1738135850553,-3029.10765067,0.00017808,2]
[350799165,1738135850564,-512.95,0.00017808,2]
[350799166,1738135850573,-500.0,0.00017808,2]
[350799167,1738135850582,-500.0,0.00017808,2]
[350799168,1738135850591,-500.0,0.00017808,2]
[350799169,1738135850601,-164.8,0.00017808,2]
[350799170,1738135850611,-805.85,0.00017808,2]
[350799171,1738135850620,-1284.94,0.00017808,2]